fUST/lending_fUST_20251103
["ID","MTS","AMOUNT","RATE_DAILY","PERIOD"]
[392959217,1762180086420,-9999.99,0.000184,2]
[392959218,1762180089785,-5000.0,0.00018216,2]
[392959224,1762180108067,10000.01,0.00017,2]
[392959225,1762180108088,10000.01,0.00017,2]
[392959226,1762180108110,10000.01,0.00017,2]
[392959227,1762180108130,6810.52303448,0.00017,2]
[392959230,1762180110492,1341.67029619,0.00015,2]
[392959240,1762180146183,-12954.47744157,0.00024142,2]
[392959241,1762180146205,-5000.0,0.00024622,2]
[392959242,1762180146224,-3470.23558401,0.00024871,2]
[392959243,1762180146243,-5000.0,0.00025122,2]
[392959244,1762180146264,-150.0,0.00025291,2]
[392959245,1762180146284,-281.25,0.00026598,2]
[392959246,1762180146304,-281.25,0.0002728,17]
[392959247,1762180146325,-177.0,0.00027291,2]
[392959248,1762180146344,-150.45904938,0.00027536,2]
[392959249,1762180146364,-281.25,0.00027963,32]
[392959250,1762180146384,-281.25,0.00028646,48]
[392959251,1762180146404,-1658.74517158,0.00029228,2]
[392959252,1762180146424,-204.0,0.00029291,2]
[392959253,1762180146444,-21683.93219639,0.00029291,2]
[392959254,1762180146463,-281.25,0.00029328,63]
[392959255,1762180146484,-500.0,0.00029963,60]
[392959256,1762180146503,-281.25,0.00030011,79]
[392959257,1762180146523,-442.89282929,0.00030083,2]
[392959258,1762180146542,-281.25,0.00030694,94]
[392959259,1762180146562,-231.0,0.00031291,2]
[392959260,1762180146581,-281.25,0.00031376,110]
[392959261,1762180146600,-160.14609718,0.000314,30]
[392959262,1762180146619,-258.0,0.00033291,120]
[392959263,1762180146638,-200.00000077,0.000334,2]
[392959264,1762180146657,-195.164012,0.00033775,2]
[392959266,1762180182142,716.019688,0.00013699,2]
[392959267,1762180182347,716.019688,0.00020187,2]
[392959268,1762180182606,698.35507665,0.00026676,2]
[392959293,1762180232063,-351.74707463,0.00024999,2]
[392959294,1762180232076,-848.25292537,0.00024999,2]
[392959295,1762180232087,-7220.46523076,0.00025,2]
[392959296,1762180232099,-13656.53476924,0.00025,2]
[392959297,1762180232108,-544.0,0.00026676,2]
[392959298,1762180232119,-17.66461135,0.00026676,2]
[392959299,1762180232128,-155.03,0.00029729,30]
[392959300,1762180232138,-716.019688,0.00033165,2]
[392959301,1762180232147,-300.0,0.000338,2]
[392959302,1762180232157,-300.0,0.000338,2]
[392959303,1762180232167,-1658.74517154,0.00034245,2]
[392959304,1762180232176,-442.89282929,0.000351,3]
[392959305,1762180232185,-285.0,0.00035291,120]
[392959306,1762180232195,-320.0,0.00035664,3]
[392959307,1762180232204,-320.0,0.00035664,3]
[392959308,1762180232214,-300.0,0.00035664,3]
[392959309,1762180232223,-400.0,0.00035664,3]
[392959310,1762180232233,-2000.0,0.00035665,15]
[392959311,1762180232242,-169.442516,0.000357,20]
[392959312,1762180232251,-500.0,0.0003605,5]
[392959313,1762180232261,-500.0,0.0003673,30]
[392959314,1762180232271,-500.0,0.0003693,30]
[392959315,1762180232281,-151.0,0.00037,16]
[392959316,1762180232290,-3102.26,0.00037026,17]
[392959317,1762180232299,-4136.28,0.0003712,17]
[392959318,1762180232309,-2063.62323542,0.0003723,2]
[392959319,1762180232318,-160.0,0.0003728,2]
[392959320,1762180232328,-404.18480381,0.00037281,2]
[392959321,1762180232338,-312.0,0.00037291,120]
[392959322,1762180232347,-851.75,0.00037316,10]
[392959323,1762180232356,-217.493,0.00037325,48]
[392959324,1762180232365,-612809.69263804,0.00037326,2]
[392959325,1762180232378,-7522.20648926,0.00037326,2]
[392959326,1762180232388,-351.49724853,0.00037326,2]
[392959327,1762180232399,-1902.44981061,0.00037326,2]
[392959328,1762180232410,-560.16633354,0.00037326,2]
[392959336,1762180237949,-985.0,0.00036346,2]
[392959339,1762180237959,-61853.98748002,0.00037326,2]
[392959340,1762180237968,-500.0,0.0003733,30]
[392959343,1762180237979,-180.80481846,0.00037373,2]
[392959345,1762180237988,-403.3298081,0.00037393,30]
[392959347,1762180237998,-151.0,0.000374,11]
[392959349,1762180238008,-12572.21830915,0.0003741,3]
[392959351,1762180238019,-306.017431,0.0003741,3]
[392959568,1762180240302,-481.1398926,0.0003741,3]
[392959578,1762180240388,-11480.84476255,0.0003741,3]
[392959580,1762180240398,-500.0,0.00037415,60]
[392959582,1762180240408,-33269.15523745,0.00037416,3]
[392959585,1762180240419,-3991.17535545,0.00037416,3]
[392959587,1762180240428,-55.53675873,0.0003742,30]
[392960781,1762180457247,7503.0,0.00037524,60]
[392960929,1762181156306,990.0,0.00032877,120]
[392960936,1762181196117,-389.23645729,0.00023869,2]
[392960937,1762181196138,-999.0,0.00023969,2]
[392960938,1762181196160,-150.0,0.00024233,2]
[392960939,1762181196181,-911.9134082,0.00024496,2]
[392960940,1762181196204,-404.18480381,0.00024771,2]
[392960941,1762181196225,-500.0,0.0002487,2]
[392960942,1762181196246,-1252.60920645,0.00024892,2]
[392960943,1762181196376,-500.0,0.00024973,2]
[392960944,1762181196400,-230.66524305,0.00024973,2]
[392960945,1762181196420,-500.0,0.00024973,2]
[392960946,1762181196441,-300.0,0.0002499,2]
[392960947,1762181196461,-192.89686381,0.00024991,2]
[392960948,1762181196482,-500.0,0.00024991,2]
[392960949,1762181196502,-500.0,0.00024991,2]
[392960950,1762181196523,-500.0,0.00024991,2]
[392960951,1762181196544,-500.0,0.00024991,2]
[392960952,1762181196565,-500.0,0.00024991,2]
[392960953,1762181196587,-500.0,0.00024991,2]
[392960954,1762181196607,-500.0,0.00024991,2]
[392960955,1762181196629,-500.0,0.00024991,2]
[392960956,1762181196650,-500.0,0.00024991,2]
[392960957,1762181196670,-500.0,0.00024991,2]
[392960958,1762181196692,-500.0,0.00024991,2]
[392960959,1762181196713,-500.0,0.00024991,2]
[392960960,1762181196735,-500.0,0.00024991,2]
[392960961,1762181196758,-198.1346788,0.00024991,2]
[392960962,1762181196778,-500.0,0.00024991,2]
[392960963,1762181196799,-500.0,0.00024991,2]
[392960964,1762181196820,-476.17004459,0.00024991,2]
[392960979,1762181234086,-23.82995541,0.00024991,2]
[392960980,1762181234108,-500.0,0.00024991,2]
[392960981,1762181234133,-500.0,0.00024991,2]
[392960982,1762181234153,-500.0,0.00024991,2]
[392960983,1762181234178,-500.0,0.00024991,2]
[392960984,1762181234203,-500.0,0.00024991,2]
[392960985,1762181234223,-500.0,0.00024991,2]
[392960986,1762181234247,-500.0,0.00024991,2]
[392960987,1762181234269,-500.0,0.00024991,2]
[392960988,1762181234291,-500.0,0.00024991,2]
[392960989,1762181234311,-500.0,0.00024991,2]
[392960990,1762181234333,-500.0,0.00024991,2]
[392960991,1762181234353,-500.0,0.00024991,2]
[392960992,1762181234374,-500.0,0.00024991,2]
[392960993,1762181234396,-500.0,0.00024991,2]
[392960994,1762181234418,-500.0,0.00024991,2]
[392960995,1762181234443,-332.47413774,0.00024991,2]
[392960996,1762181234464,-500.0,0.00024991,2]
[392960997,1762181234484,-500.0,0.00024991,2]
[392960998,1762181234506,-649.99999997,0.00024991,2]
[392960999,1762181234527,-500.0,0.00024991,2]
[392961000,1762181234545,-269.0,0.00024991,2]
[392961001,1762181234566,-50000.0,0.00024992,2]
[392961002,1762181234586,-168.0,0.00024992,2]
[392961003,1762181234606,-422.70734734,0.00024992,2]
[392961005,1762181234626,-500.0,0.00024995,2]
[392961006,1762181234646,-500.0,0.00024995,2]
[392961007,1762181234666,-2807.24539464,0.00025205,2]
[392961008,1762181234688,-177.0,0.00026233,2]
[392961009,1762181234708,-160.47632524,0.0002717,2]
[392961010,1762181234728,-151.37633104,0.00028233,2]
[392961011,1762181234748,-1252.60920638,0.00030528,2]
[392961012,1762181234768,-157.14937578,0.000332,117]
[392961013,1762181234788,-250.0,0.00035,7]
[392961014,1762181234808,-640.65240465,0.0003546,2]
[392961015,1762181234827,-411.45149029,0.00035662,15]
[392961016,1762181234848,-1252.60920638,0.00036164,2]
[392961017,1762181234868,-985.0,0.00036355,2]
[392961018,1762181234887,-2164.0,0.00036355,2]
[392961019,1762181234906,-412.0,0.00036355,2]
[392961020,1762181234928,-153.01,0.00037216,3]
[392961021,1762181234948,-2550.40502201,0.000373,30]
[392961022,1762181234967,-3000.0,0.000373,30]
[392961023,1762181234986,-2981.18026419,0.000373,30]
[392961024,1762181242093,-4801.28755819,0.00037273,2]
[392961025,1762181242117,-18.81973581,0.000373,30]
[392961026,1762181242143,-151.0,0.000373,13]
[392961027,1762181242164,-828.68,0.00037316,3]
[392961028,1762181242187,-4430.8512882,0.00037316,3]
[392961029,1762181242209,-19394.4794546,0.00037316,3]
[392961030,1762181242229,-160.80375356,0.00037326,2]
[392961031,1762181242252,-122280.35280664,0.00037326,2]
[392961064,1762181353097,-562.91410595,0.00024992,2]
[392961066,1762181370039,2969.51285456,0.00024953,2]
[392961140,1762181432402,-5000.0,0.00024703,2]
[392961141,1762181432413,-2030.48714544,0.00024953,2]
[392961142,1762181432424,-151.42696347,0.00034342,7]
[392961143,1762181432433,-137022.3332493,0.00037316,3]
[392961144,1762181432555,10000.0,0.00032877,120]
[392961156,1762181438812,-500.0,0.00026574,2]
[392961157,1762181438822,-244.23718653,0.00026574,2]
[392961158,1762181438831,-500.0,0.00026574,2]
[392961159,1762181438841,-350.0,0.00026574,2]
[392961160,1762181438852,-425.83045975,0.00026574,2]
[392961161,1762181438862,-3488.85833333,0.00037316,3]
[392961162,1762181438874,-2417.235055,0.00037316,3]
[392961163,1762181438885,-1566.68091614,0.00037316,3]
[392961164,1762181438896,-1002.23218675,0.00037316,3]
[392961165,1762181438908,-9828.61376448,0.00037316,3]
[392961166,1762181438917,-562719.64719336,0.00037326,2]
[392961167,1762181438927,-500.0,0.00037373,5]
[392961168,1762181438937,-160.0,0.00037387,3]
[392961169,1762181438946,-7474.16750274,0.000374,2]
[392961170,1762181438956,-15532.5953505,0.000374,3]
[392961171,1762181438966,-46597.7860514,0.0003741,3]
[392961172,1762181438976,-215.95185264,0.0003741,5]
[392961173,1762181438985,-500.0,0.00037415,60]
[392961174,1762181438995,-500.0,0.00037415,60]
[392961175,1762181439005,-58853.23951383,0.0003742,30]
[392961176,1762181439018,-7412.80265241,0.0003742,30]
[392961179,1762181440478,-5000.0,0.00024953,2]
[392961180,1762181440488,-10681.76320611,0.0003742,30]
[392961181,1762181440516,-400.0,0.0003742,30]
[392961182,1762181440553,-114664.15810824,0.0003742,30]
[392961576,1762181445429,-5717.47153802,0.0003742,30]
[392961578,1762181445440,-4164.06764004,0.0003742,30]
[392961581,1762181445451,-408.0,0.0003742,30]
[392961583,1762181445462,-1875.29632442,0.0003742,30]
[392961585,1762181445473,-274.70367558,0.0003742,30]
[392961630,1762181445814,-1611.645634,0.0003742,30]
[392961634,1762181445825,-1247.89798495,0.0003742,30]
[392961727,1762181446274,10000.0,0.00032877,120]
[392961768,1762181446691,-406.95655896,0.0003742,30]
[392961786,1762181446897,-16896.252733,0.0003742,30]
[392961788,1762181446909,-18562.58909124,0.0003742,30]
[392961790,1762181446920,-150955.36938951,0.0003742,30]
[392961794,1762181465893,10000.0,0.00032877,120]
[392961795,1762181480679,10000.0,0.00032877,120]
[392961801,1762181493746,10000.0,0.00032877,120]
[392961814,1762181534441,161.6,0.00032876,120]
[392961861,1762181633211,10000.0,0.00032877,120]
[392961862,1762181647501,10000.0,0.00032877,120]
[392961863,1762181658124,10000.0,0.00032877,120]
[392961919,1762181951654,169.169034,0.00016439,2]
[392961921,1762182269643,1003.65,0.00032877,120]
[392961922,1762182289434,2000.0,0.00037539,65]
[392961923,1762182304854,9853.0,0.000183,2]
[392961924,1762182511621,10000.0,0.00037543,20]
[392961925,1762182514645,306.90190346,0.00019,3]
[392961926,1762182516734,2000.0,0.00037543,20]
[392961930,1762182565161,-5000.0,0.000227,2]
[392961931,1762182565185,-5000.0,0.00022929,2]
[392961932,1762182565210,-300.0,0.00023158,2]
[392961933,1762182565233,-500.0,0.00023159,2]
[392961934,1762182565258,-500.0,0.00023159,2]
[392961935,1762182565280,-500.0,0.00023159,2]
[392961936,1762182565304,-500.0,0.00023159,2]
[392961937,1762182565330,-500.0,0.00023159,2]
[392961938,1762182565354,-500.0,0.00023159,2]
[392961939,1762182565378,-500.0,0.00023159,2]
[392961940,1762182565401,-500.0,0.00023159,2]
[392961941,1762182565422,-500.0,0.00023159,2]
[392961942,1762182565447,-584.6429749,0.00023159,2]
[392961943,1762182565468,-500.0,0.00023159,2]
[392961944,1762182565492,-500.0,0.00023159,2]
[392961945,1762182565515,-500.0,0.00023159,2]
[392961946,1762182565540,-500.0,0.00023159,2]
[392961947,1762182565564,-444.45751251,0.00023159,2]
[392961948,1762182565588,-500.0,0.00023159,2]
[392961949,1762182565613,-500.0,0.00023159,2]
[392961950,1762182565638,-500.0,0.00023159,2]
[392961951,1762182565664,-500.0,0.00023159,2]
[392961952,1762182565685,-500.0,0.00023159,2]
[392961953,1762182565707,-500.0,0.00023159,2]
[392961954,1762182565727,-5000.0,0.00023161,2]
[392961955,1762182565747,-500.0,0.000232,2]
[392961956,1762182565770,-698.0,0.0002363,2]
[392961957,1762182565794,-500.0,0.000237,2]
[392961958,1762182565817,-300.0,0.00023869,2]
[392961959,1762182565838,-300.0,0.00023869,2]
[392961960,1762182565858,-500.0,0.00024248,2]
[392961961,1762182565881,-500.0,0.00024296,2]
[392961962,1762182565904,-444.0,0.00024601,2]
[392961963,1762182565927,-228.82015786,0.00024849,2]
[392961964,1762182565947,-265.94824362,0.00027148,2]
[392961965,1762182565970,-782.88075404,0.00028412,2]
[392961966,1762182565991,-189.28371413,0.00028511,2]
[392961967,1762182566017,-1577.4951331,0.00028513,2]
[392961968,1762182566038,-203.1360629,0.00028702,2]
[392961969,1762182566060,-265.94824362,0.00031481,3]
[392961970,1762182566083,-206.99793087,0.00032176,60]
[392961971,1762182566105,-1385.3914034,0.00032177,2]
[392961972,1762182566127,-169.169034,0.00032233,2]
[392961973,1762182566149,-782.88075398,0.00033545,2]
[392961974,1762182591938,449.0,0.00032877,120]
[392961977,1762182632704,-265.94824362,0.00035814,4]
[392961978,1762182632714,-130.05577157,0.00036023,30]
[392961995,1762182638316,-412.0,0.0003572,2]
[392961996,1762182638327,-139.1458927,0.00036023,30]
[392961997,1762182638361,-586.91898293,0.00036023,30]
[392961998,1762182638370,-1537.737,0.00036358,2]
[392961999,1762182638380,-2073.87470354,0.00036392,2]
[392962000,1762182638390,-231.62699721,0.00036696,15]
[392962001,1762182638400,-500.0,0.00036696,2]
[392962002,1762182638409,-271.60639028,0.00036696,2]
[392962003,1762182638419,-2073.87470354,0.00036697,2]
[392962004,1762182638428,-2073.87470354,0.00036751,2]
[392962005,1762182638439,-172.90399864,0.000369,2]
[392962006,1762182638449,-10269.0875498,0.0003698,3]
[392962007,1762182638459,-1000.0,0.00036989,2]
[392962008,1762182638469,-1000.0,0.00036989,2]
[392962009,1762182638479,-1000.0,0.00036989,2]
[392962010,1762182638490,-1000.0,0.00036989,2]
[392962011,1762182638500,-1000.0,0.00036989,2]
[392962012,1762182638510,-1000.0,0.00036989,2]
[392962013,1762182638521,-87550.9401901,0.0003699,2]
[392962014,1762182638531,-167.77968037,0.00037,5]
[392962015,1762182638541,-7952.10858955,0.00037116,2]
[392962016,1762182638552,-413.0,0.0003715,2]
[392962017,1762182638564,-2073.87470356,0.00037172,2]
[392962018,1762182638574,-10269.0875498,0.00037186,3]
[392962019,1762182638584,-1495.92,0.00037196,3]
[392962020,1762182638595,-1000.0,0.00037196,2]
[392962021,1762182638605,-1000.0,0.00037196,2]
[392962022,1762182638615,-1000.0,0.00037206,2]
[392962023,1762182638625,-298.73438807,0.00037206,2]
[392962024,1762182638635,-143767.225697,0.00037206,3]
[392962025,1762182638645,-685000.0,0.00037216,2]
[392962026,1762182638655,-501.68682949,0.00037273,5]
[392962027,1762182638666,-500.66529198,0.00037273,2]
[392962028,1762182638677,-500.0,0.00037273,5]
[392962029,1762182638687,-500.0,0.00037273,5]
[392962030,1762182638697,-501.99716554,0.00037273,5]
[392962031,1762182638708,-151.0,0.00037273,5]
[392962032,1762182638718,-151.0,0.00037273,5]
[392962033,1762182638729,-151.0,0.000373,14]
[392962034,1762182638742,-10269.0875498,0.00037305,3]
[392962035,1762182638751,-500.0,0.00037419,30]
[392962036,1762182638762,-151.0,0.00037419,30]
[392962037,1762182638772,-156.587,0.00037419,30]
[392962038,1762182638782,-162.380719,0.00037419,30]
[392962039,1762182638791,-168.3888056,0.00037419,30]
[392962040,1762182638801,-174.61919141,0.00037419,30]
[392962041,1762182638810,-181.08010149,0.00037419,30]
[392962042,1762182638819,-187.78006525,0.00037419,30]
[392962043,1762182638828,-194.72792766,0.00037419,30]
[392962044,1762182638838,-201.93286099,0.00037419,30]
[392962045,1762182638848,-209.40437684,0.00037419,30]
[392962046,1762182638858,-217.15233878,0.00037419,30]
[392962047,1762182638867,-225.18697532,0.00037419,30]
[392962048,1762182638878,-233.51889341,0.00037419,30]
[392962049,1762182638887,-242.15909246,0.00037419,30]
[392962050,1762182638897,-251.11897888,0.00037419,30]
[392962051,1762182638907,-213.50775532,0.00037419,30]
[392962052,1762182638920,-215.95185264,0.0003742,5]
[392962053,1762182638931,-14834.44571086,0.0003742,30]
[392962054,1762182638941,-7474.16750274,0.00037444,2]
[392962055,1762182638951,-155.0,0.00037484,30]
[392962056,1762182638962,-155.0,0.00037484,30]
[392962057,1762182638971,-564898.5762071,0.00037495,4]
[392962058,1762182638981,-250.0,0.000375,14]
[392962059,1762182638992,-250.0,0.000375,14]
[392962060,1762182639001,-1000.0,0.000375,2]
[392962061,1762182639011,-151.0,0.000375,11]
[392962062,1762182639020,-3000.0,0.000375,15]
[392962063,1762182639030,-67005.59250789,0.000375,120]
[392962064,1762182639042,-1119.96670288,0.000375,120]
[392962065,1762182639054,-1003.90200101,0.000375,120]
[392962110,1762182640868,-17490.33121522,0.000375,120]
[392962527,1762182646614,-12358.78388109,0.000375,120]
[392962528,1762182646624,-160.0,0.00037501,30]
[392962529,1762182646633,-160.0,0.00037501,30]
[392962530,1762182646642,-1141.63,0.00037514,3]
[392962531,1762182646652,-570.82,0.00037514,3]
[392962532,1762182646661,-285.41,0.00037514,3]
[392962533,1762182646670,-856.25,0.00037514,3]
[392962534,1762182646680,-1498.0,0.00037524,60]
[392962535,1762182646690,-168.0,0.00037526,2]
[392962536,1762182646700,-527.83,0.00037527,60]
[392962537,1762182646711,-3137.999999,0.00037531,30]
[392962538,1762182646720,-3000.0,0.00037531,20]
[392962539,1762182646730,-165.849253,0.00037536,20]
[392962540,1762182646740,-6052.46115476,0.00037544,12]
[392962541,1762182646749,-1549.14219294,0.00037544,14]
[392962542,1762182646759,-154.98269212,0.00037544,7]
[392962543,1762182646768,-1021.28274575,0.00037544,7]
[392962544,1762182646778,-817.54938707,0.00037544,15]
[392962545,1762182646787,-1529.33734466,0.00037544,15]
[392962546,1762182646796,-3684.00182936,0.00037544,7]
[392962547,1762182646806,-13276.54705726,0.00037544,5]
[392962548,1762182646815,-2529.17700115,0.00037544,7]
[392962549,1762182646825,-177.23539947,0.00037544,7]
[392962550,1762182646840,-158.0,0.00037544,10]
[392962551,1762182646850,-1948.88977932,0.00037544,5]
[392962552,1762182646859,-400.45888779,0.00037544,3]
[392962553,1762182646870,-70655.55605309,0.00037544,2]
[392962554,1762182646880,-418.83225911,0.00037544,2]
[392962556,1762182646889,-151.98207744,0.00037544,2]
[392962558,1762182646898,-618.0,0.00037544,2]
[392962560,1762182646910,-5003.49641215,0.00037544,7]
[392962561,1762182646922,-250.0,0.00037544,10]
[392962562,1762182646931,-1368.48511002,0.00037544,7]
[392962563,1762182646941,-2073.59290873,0.00037544,20]
[392962564,1762182646950,-5000.0,0.00037544,20]
[392962565,1762182646959,-5000.0,0.00037544,20]
[392962566,1762182646970,-318.65,0.00037552,30]
[392962567,1762182646979,-190.67775,0.00037559,5]
[392962568,1762182646988,-3629.57299955,0.00037595,2]
[392962569,1762182646998,-466.91,0.000376,7]
[392962570,1762182647007,-165.849253,0.000376,20]
[392962571,1762182647016,-150.82,0.00037619,60]
[392962572,1762182647025,-150.82,0.00037719,60]
[392962573,1762182647034,-200.0,0.00037765,120]
[392962574,1762182647044,-1016.74495803,0.000378,2]
[392962575,1762182647053,-150.82,0.00037819,60]
[392962576,1762182647062,-1000.0,0.00037821,5]
[392962577,1762182647071,-1000.0,0.00037821,5]
[392962578,1762182647080,-413.0,0.00037834,2]
[392962579,1762182647089,-169.10577985,0.00037904,60]
[392962580,1762182647099,-150.82,0.00037919,60]
[392962581,1762182647108,-172.15853328,0.00038,2]
[392962582,1762182647118,-239.0,0.00038,2]
[392962583,1762182647127,-465.0,0.00038,10]
[392962584,1762182647136,-1330.42,0.00038,2]
[392962585,1762182647145,-237.0,0.00038,14]
[392962586,1762182647154,-7952.10858953,0.00038008,2]
[392962587,1762182647163,-150.82,0.00038019,60]
[392962588,1762182647173,-200.0,0.00038026,120]
[392962589,1762182647182,-150.82,0.00038119,60]
[392962590,1762182647191,-168.0,0.00038166,2]
[392962591,1762182647200,-150.82,0.00038219,60]
[392962592,1762182647209,-179.60076227,0.00038247,30]
[392962593,1762182647218,-150.82,0.00038319,60]
[392962594,1762182647227,-501.13663059,0.00038368,5]
[392962595,1762182647237,-205.52560569,0.00038368,5]
[392962596,1762182647246,-150.82,0.00038419,120]
[392962597,1762182647255,-200.0,0.00038458,120]
[392962598,1762182647264,-150.82,0.00038519,120]
[392962599,1762182647273,-2991.84,0.00038566,3]
[392962600,1762182647282,-150.82,0.00038619,120]
[392962601,1762182647292,-168.0,0.00038628,2]
[392962602,1762182647301,-200.0,0.00038652,120]
[392962603,1762182647311,-150.82,0.00038719,120]
[392962604,1762182647320,-412.0,0.0003872,2]
[392962605,1762182647330,-179.60076227,0.0003874,30]
[392962606,1762182647339,-4457.43,0.000388,14]
[392962607,1762182647348,-30604.59326351,0.000388,120]
[392962608,1762182647357,-2319.4846652,0.00038811,2]
[392962609,1762182647370,-557.5153348,0.00038811,2]
[392962610,1762182647379,-150.82,0.00038819,120]
[392962611,1762182647388,-168.0,0.00038851,2]
[392962612,1762182647397,-1.42679476,0.00038884,3]
[392962613,1762182647408,-2281.83320524,0.00038884,3]
[392962614,1762182647417,-1141.64,0.00038884,3]
[392962615,1762182647426,-570.82,0.00038884,3]
[392962616,1762182647435,-7265.38192122,0.000389,2]
[392962617,1762182647446,-686.72666831,0.000389,2]
[392962618,1762182647455,-150.82,0.00038919,120]
[392962619,1762182647466,-1013.82811356,0.00039,120]
[392962621,1762182683580,500.0,0.00024657,2]
[392962623,1762182913563,627.593149,0.00013699,2]
[392962627,1762183242167,10000.0,0.00037544,120]
[392962628,1762183256977,10000.0,0.00037544,120]
[392962629,1762183257447,10000.0,0.00037544,120]
[392962630,1762183257894,10000.0,0.00037544,120]
[392962631,1762183258382,10000.0,0.00037544,120]
[392962632,1762183258641,10000.0,0.00037544,120]
[392962633,1762183267918,4651.33278715,0.00037544,120]
[392962634,1762183369277,773.98000001,0.00037544,120]
[392962647,1762183630866,152.0,0.000183,2]
[392962648,1762183638152,-195.1640126,0.00018803,2]
[392962649,1762183638182,-150.0,0.00019034,2]
[392962650,1762183638205,-400.0,0.00019196,2]
[392962651,1762183638230,-231.62699721,0.00019784,2]
[392962652,1762183638253,-275.16643177,0.00019784,2]
[392962662,1762183723637,3047.10536104,0.00037545,20]
[392962664,1762183765167,-749.48946215,0.00018734,2]
[392962665,1762183765192,-150.0,0.00018923,2]
[392962666,1762183765213,-5000.0,0.00019586,2]
[392962667,1762183765235,-300.0,0.00019784,2]
[392962668,1762183765272,-150.0,0.00019862,2]
[392962669,1762183765294,-627.593149,0.00020187,2]
[392962670,1762183765318,-150.0,0.00020725,2]
[392962671,1762183765344,-300.0,0.00020845,2]
[392962672,1762183765367,-500.0,0.00020846,2]
[392962673,1762183765389,-500.0,0.00020846,2]
[392962674,1762183765412,-412.59609913,0.00020846,2]
[392962675,1762183765432,-23150.13190742,0.00020847,2]
[392962676,1762183765453,-1471.82465703,0.00021568,2]
[392962677,1762183765476,-150.0,0.00021668,2]
[392962678,1762183765501,-420.0,0.00022678,2]
[392962679,1762183765523,-177.59422867,0.0002293,2]
[392962680,1762183765544,-227.5,0.000231,2]
[392962681,1762183765566,-380.0,0.00024658,2]
[392962682,1762183765588,-587.0,0.00024673,2]
[392962683,1762183765611,-620.05,0.0002499,10]
[392962684,1762183765634,-327.08,0.0002499,10]
[392962685,1762183765656,-11447.61987394,0.00025,2]
[392962766,1762183832994,-5000.0,0.00019602,3]
[392962767,1762183833005,-300.0,0.000198,2]
[392962768,1762183833019,-300.0,0.000198,2]
[392962770,1762183833031,-300.0,0.000198,2]
[392962772,1762183833044,-277.0,0.000198,2]
[392962773,1762183833056,-403.57982481,0.000249,2]
[392962774,1762183833067,-245.0,0.00024999,2]
[392962775,1762183833080,-330414.74340448,0.00025,2]
[392962776,1762183833091,-5394.41,0.00025,7]
[392962777,1762183833219,-627.593149,0.00026676,2]
[392962778,1762183833240,-1471.82465697,0.00027722,2]
[392962779,1762183833252,-244.01736168,0.00028199,30]
[392962780,1762183833264,-177.59422867,0.00029802,4]
[392962781,1762183833276,-160.0,0.00032557,2]
[392962782,1762183833289,-177.83136761,0.000331,120]
[392962783,1762183833301,-274.11672293,0.000331,120]
[392962784,1762183833313,-197.72680132,0.000331,120]
[392962785,1762183833323,-200.0,0.00033105,2]
[392962786,1762183833336,-627.593149,0.00033165,2]
[392962787,1762183833352,-1471.82465697,0.00033875,2]
[392962788,1762183833364,-177.83136761,0.000341,120]
[392962789,1762183833376,-274.11672293,0.000341,120]
[392962790,1762183833387,-501.68682949,0.000341,5]
[392962791,1762183833400,-501.53145934,0.000341,5]
[392962792,1762183833411,-150.82,0.00034804,60]
[392962793,1762183833422,-150.82,0.00034904,60]